[Event "EYCC Open U10 2021"]
[Site "Tornelo"]
[Date "2021.10.15"]
[Round "1.1"]
[White "Silva, Mark Orlov"]
[Black "Ahmad, Khagan"]
[Result "0-1"]
[ECO "D02"]
[WhiteElo "1322"]
[BlackElo "2009"]
[Annotator "ChessBase"]
[PlyCount "36"]
[EventDate "2021.10.15"]
[EventType "swiss"]
[EventCountry "NET"]
[SourceTitle "playchess.com"]
[Source "ChessBase"]
[SourceQuality "1"]
[TimeControl "5400+30"]

1. d4 {[%emt 0:00:30]} Nf6 {[%emt 0:00:38]} 2. Bf4 {[%emt 0:00:24]} e6 {[%emt 0:00:13]} 3. e3 {[%emt 0:00:12]} d5 {[%emt 0:00:04]} 4. Nf3 {[%emt 0:00:20]} c5 {[%emt 0:00:17]} 5. c3 {[%emt 0:00:40]} Nc6 {[%emt 0:00:16]} 6. Nbd2 {[%emt 0:00:32]} Bd6 {[%emt 0:00:25]} 7. Bg3 {[%emt 0:00:35]} O-O {[%emt 0:00:17]} 8. Ne5 {[%emt 0:01:07]} Bxe5 {[%emt 0:03:10]} 9. Bxe5 {[%emt 0:00:36]} Nxe5 {[%emt 0:00:07]} 10. dxe5 {[%emt 0:00:14]} Nd7 {[%emt 0:00:03]} 11. f4 {[%emt 0:01:12]} f6 {[%emt 0:01:58]} 12. exf6 {[%emt 0:00:28]} Nxf6 {[%emt 0:00:10]} 13. Nf3 {[%emt 0:00:19]} Ng4 {[%emt 0:05:00]} 14. Qd2 {[%emt 0:00:46]} e5 {[%emt 0:00:12]} 15. h3 {[%emt 0:02:17]} Nf6 {[%emt 0:00:04]} 16. Nxe5 {[%emt 0:01:16]} Ne4 {[%emt 0:00:03]} 17. Qc2 {[%emt 0:02:30]} Qh4+ {[%emt 0:00:05]} 18. Ke2 {[%emt 0:01:19]} Bf5 {[%emt 0:00:29]} 0-1

[Event "EYCC Open U10 2021"]
[Site "Tornelo"]
[Date "2021.10.15"]
[Round "1.2"]
[White "Besou, Hussain"]
[Black "Borodich, Miroslav"]
[Result "1-0"]
[ECO "B01"]
[WhiteElo "1995"]
[BlackElo "1317"]
[Annotator "NA"]
[PlyCount "103"]
[EventDate "2021.10.15"]
[EventType "swiss"]
[EventCountry "NET"]
[SourceTitle "playchess.com"]
[Source "ChessBase"]
[SourceQuality "1"]
[TimeControl "5400+30"]

1. e4 {[%emt 0:00:30]} d5 {[%emt 0:00:39]} 2. exd5 {[%emt 0:00:11]} Qxd5 {[%emt 0:00:27]} 3. Nc3 {[%emt 0:00:15]} Qd6 {[%emt 0:00:24]} 4. d4 {[%emt 0:00:08]} Nf6 {[%emt 0:00:36]} 5. Nf3 {[%emt 0:04:10]} a6 {[%emt 0:03:34]} 6. Ne5 {[%emt 0:02:07]} Nc6 {[%emt 0:04:15]} 7. Nxc6 {[%emt 0:01:17]} Qxc6 {[%emt 0:02:00]} 8. Bf4 {[%emt 0:04:57]} Bg4 {[%emt 0:06:07]} 9. f3 {[%emt 0:02:46]} Bf5 {[%emt 0:02:27]} 10. Bd3 {[%emt 0:02:21]} Bg6 {[%emt 0:03:16]} 11. Qe2 {[%emt 0:01:35]} e6 {[%emt 0:01:23]} 12. O-O-O {[%emt 0:12:02]} O-O-O {[%emt 0:03:11]} 13. Be5 {[%emt 0:04:32]} Nd5 {[%emt 0:01:51]} 14. Nxd5 {[%emt 0:00:35]} Rxd5 {[%emt 0:01:31]} 15. Be4 {[%emt 0:00:35]} Bxe4 {[%emt 0:00:09]} 16. fxe4 {[%emt 0:00:04]} Ra5 {[%emt 0:00:26]} 17. Kb1 {[%emt 0:00:27]} Qa4 {[%emt 0:00:31]} 18. a3 {[%emt 0:04:30]} Bxa3 {[%emt 0:01:56]} 19. b3 {[%emt 0:00:16]} Qb4 {[%emt 0:00:33]} 20. d5 {[%emt 0:00:21]} f6 {[%emt 0:00:45]} 21. Ba1 {[%emt 0:00:57]} e5 {[%emt 0:00:53]} 22. Qg4+ {[%emt 0:00:18]} Kb8 {[%emt 0:00:21]} 23. Qxg7 {[%emt 0:00:12]} Qf8 {[%emt 0:00:54]} 24. Qg3 {[%emt 0:00:27]} Bb4 {[%emt 0:00:40]} 25. c3 {[%emt 0:01:29]} Be7 {[%emt 0:00:33]} 26. Rhf1 {[%emt 0:00:22]} Rg8 {[%emt 0:00:21]} 27. Qf3 {[%emt 0:01:11]} Bd8 {[%emt 0:00:59]} 28. Bb2 {[%emt 0:00:26]} Rb5 {[%emt 0:01:01]} 29. c4 {[%emt 0:01:51]} Rb6 {[%emt 0:00:08]} 30. g3 {[%emt 0:01:05]} Rg6 {[%emt 0:01:05]} 31. Kc2 {[%emt 0:00:58]} Qe8 {[%emt 0:01:03]} 32. Bc3 {[%emt 0:03:27]} Rd6 {[%emt 0:00:53]} 33. c5 {[%emt 0:00:12]} Rd7 {[%emt 0:00:10]} 34. Qf5 {[%emt 0:00:07]} Rg5 {[%emt 0:01:05]} 35. Qf3 {[%emt 0:00:54]} Qg6 {[%emt 0:00:26]} 36. Kb2 {[%emt 0:00:35]} Rg4 {[%emt 0:00:42]} 37. Rde1 {[%emt 0:00:27]} Be7 {[%emt 0:00:25]} 38. b4 {[%emt 0:00:39]} Qh5 {[%emt 0:01:03]} 39. Rf2 {[%emt 0:00:57]} Rg5 {[%emt 0:00:30]} 40. Qd3 {[%emt 0:00:15]} c6 {[%emt 0:00:27]} 41. Qc4 {[%emt 0:01:40]} cxd5 {[%emt 0:00:54]} 42. exd5 {[%emt 0:00:18]} Rg4 {[%emt 0:00:20]} 43. Qd3 {[%emt 0:00:32]} Qg6 {[%emt 0:00:28]} 44. Qf3 {[%emt 0:00:50]} Rg5 {[%emt 0:00:38]} 45. c6 {[%emt 0:00:42]} bxc6 {[%emt 0:00:21]} 46. dxc6 {[%emt 0:00:04]} Rd3 {[%emt 0:00:05]} 47. c7+ {[%emt 0:00:08]} Kxc7 {[%emt 0:00:08]} 48. Qa8 {[%emt 0:00:07]} Rd8 {[%emt 0:00:39]} 49. Qa7+ {[%emt 0:00:06]} Kc8 {[%emt 0:00:17]} 50. Rc1 {[%emt 0:00:18]} Rd7 {[%emt 0:00:24]} 51. Bxe5+ {[%emt 0:00:06]} Kd8 {[%emt 0:00:09]} 52. Qb8# {[%emt 0:00:06]} 1-0

[Event "EYCC Open U10 2021"]
[Site "Tornelo"]
[Date "2021.10.15"]
[Round "1.3"]
[White "Kapitonov, Valery"]
[Black "Negrean, Andrei"]
[Result "0-1"]
[ECO "B31"]
[WhiteElo "1311"]
[BlackElo "1847"]
[Annotator "NA"]
[PlyCount "150"]
[EventDate "2021.10.15"]
[EventType "swiss"]
[EventCountry "NET"]
[SourceTitle "playchess.com"]
[Source "ChessBase"]
[SourceQuality "1"]
[TimeControl "5400+30"]

1. e4 {[%emt 0:00:30]} c5 {[%emt 0:01:52]} 2. Nf3 {[%emt 0:01:02]} Nc6 {[%emt 0:00:19]} 3. Bb5 {[%emt 0:01:41]} g6 {[%emt 0:00:45]} 4. O-O {[%emt 0:02:36]} Bg7 {[%emt 0:01:11]} 5. c3 {[%emt 0:02:12]} Nf6 {[%emt 0:14:34]} 6. Re1 {[%emt 0:05:15]} O-O {[%emt 0:04:18]} 7. d4 {[%emt 0:10:26]} cxd4 {[%emt 0:07:38]} 8. cxd4 {[%emt 0:01:34]} d5 {[%emt 0:02:05]} 9. e5 {[%emt 0:04:48]} Ne4 {[%emt 0:01:42]} 10. h3 {[%emt 0:06:12]} Qb6 {[%emt 0:11:21]} 11. Bxc6 {[%emt 0:07:02]} Qxc6 {[%emt 0:04:20]} 12. Be3 {[%emt 0:04:54]} f6 {[%emt 0:07:39]} 13. Nbd2 {[%emt 0:05:52]} Bf5 {[%emt 0:05:15]} 14. Nb3 {[%emt 0:09:19]} Rac8 {[%emt 0:08:46]} 15. Qe2 {[%emt 0:04:20]} Qd7 {[%emt 0:06:14]} 16. Rac1 {[%emt 0:09:47]} h5 {[%emt 0:09:57]} 17. exf6 {[%emt 0:02:24]} exf6 {[%emt 0:01:11]} 18. Nh4 {[%emt 0:01:35]} Rfe8 {[%emt 0:05:46]} 19. f3 {[%emt 0:07:07]} Rxc1 {[%emt 0:01:58]} 20. Rxc1 {[%emt 0:00:30]} Nd6 {[%emt 0:00:41]} 21. Qf2 {[%emt 0:02:37]} Nc4 {[%emt 0:01:02]} 22. Re1 {[%emt 0:01:29]} Kh7 {[%emt 0:01:23]} 23. Bc1 {[%emt 0:01:34]} Rxe1+ {[%emt 0:00:28]} 24. Qxe1 {[%emt 0:00:15]} b6 {[%emt 0:00:29]} 25. Nd2 {[%emt 0:04:12]} Be6 {[%emt 0:00:39]} 26. f4 {[%emt 0:01:57]} Bh6 {[%emt 0:01:11]} 27. b3 {[%emt 0:01:10]} Nd6 {[%emt 0:00:23]} 28. Ndf3 {[%emt 0:00:34]} Ne4 {[%emt 0:00:20]} 29. Be3 {[%emt 0:00:58]} Qc7 {[%emt 0:00:22]} 30. f5 {[%emt 0:00:32]} Bxe3+ {[%emt 0:00:45]} 31. Qxe3 {[%emt 0:00:08]} gxf5 {[%emt 0:00:11]} 32. Qe2 {[%emt 0:00:58]} f4 {[%emt 0:00:41]} 33. Ne1 {[%emt 0:00:15]} Qg7 {[%emt 0:00:35]} 34. Qxh5+ {[%emt 0:00:20]} Qh6 {[%emt 0:00:13]} 35. Qxh6+ {[%emt 0:00:05]} Kxh6 {[%emt 0:00:04]} 36. Nd3 {[%emt 0:00:31]} Bf7 {[%emt 0:01:00]} 37. Nf3 {[%emt 0:00:16]} Nc3 {[%emt 0:00:25]} 38. a4 {[%emt 0:00:15]} Bh5 {[%emt 0:01:10]} 39. Nxf4 {[%emt 0:00:36]} Bxf3 {[%emt 0:00:08]} 40. gxf3 {[%emt 0:00:04]} Kg5 {[%emt 0:00:07]} 41. Ne6+ {[%emt 0:00:15]} Kf5 {[%emt 0:00:11]} 42. Nc7 {[%emt 0:00:08]} Ne2+ {[%emt 0:00:32]} 43. Kf2 {[%emt 0:00:05]} Nxd4 {[%emt 0:00:18]} 44. Ke3 {[%emt 0:00:27]} Nxb3 {[%emt 0:01:48]} 45. Nxd5 {[%emt 0:00:06]} Nc5 {[%emt 0:00:24]} 46. Nc3 {[%emt 0:00:06]} Kg5 {[%emt 0:00:28]} 47. Kf2 {[%emt 0:02:16]} Kh4 {[%emt 0:00:28]} 48. Kg2 {[%emt 0:00:17]} f5 {[%emt 0:00:30]} 49. Kh2 {[%emt 0:00:34]} Nd3 {[%emt 0:00:36]} 50. Nd5 {[%emt 0:00:30]} Nc5 {[%emt 0:00:23]} 51. Nc3 {[%emt 0:00:08]} a6 {[%emt 0:00:26]} 52. Kg2 {[%emt 0:00:25]} Nd3 {[%emt 0:00:21]} 53. Nd5 {[%emt 0:00:26]} b5 {[%emt 0:00:24]} 54. axb5 {[%emt 0:00:47]} axb5 {[%emt 0:00:07]} 55. Ne3 {[%emt 0:00:22]} f4 {[%emt 0:00:52]} 56. Nf5+ {[%emt 0:00:38]} Kg5 {[%emt 0:00:17]} 57. Nd4 {[%emt 0:00:06]} b4 {[%emt 0:00:13]} 58. Kf1 {[%emt 0:00:15]} Nc5 {[%emt 0:01:24]} 59. Ke2 {[%emt 0:00:40]} Kh4 {[%emt 0:00:33]} 60. Kd2 {[%emt 0:00:13]} Kg3 {[%emt 0:00:31]} 61. Ke2 {[%emt 0:01:46]} Kxh3 {[%emt 0:00:26]} 62. Kd2 {[%emt 0:00:29]} Kg3 {[%emt 0:00:12]} 63. Ke2 {[%emt 0:00:31]} b3 {[%emt 0:00:32]} 64. Kd2 {[%emt 0:00:21]} b2 {[%emt 0:00:33]} 65. Kc2 {[%emt 0:00:14]} Na4 {[%emt 0:00:37]} 66. Kb1 {[%emt 0:00:41]} Kf2 {[%emt 0:00:12]} 67. Nf5 {[%emt 0:00:25]} Kxf3 {[%emt 0:00:08]} 68. Nd4+ {[%emt 0:00:03]} Kg2 {[%emt 0:00:11]} 69. Kc2 {[%emt 0:00:06]} f3 {[%emt 0:00:11]} 70. Nxf3 {[%emt 0:00:04]} Kxf3 {[%emt 0:00:05]} 71. Kb1 {[%emt 0:00:05]} Ke3 {[%emt 0:00:06]} 72. Kc2 {[%emt 0:00:15]} Kd4 {[%emt 0:00:05]} 73. Kb1 {[%emt 0:00:12]} Kc3 {[%emt 0:00:06]} 74. Ka2 {[%emt 0:00:08]} Kc2 {[%emt 0:00:05]} 75. Ka3 {[%emt 0:00:04]} b1=Q {[%emt 0:00:35]} 0-1

[Event "EYCC Open U10 2021"]
[Site "Tornelo"]
[Date "2021.10.15"]
[Round "1.5"]
[White "Skvortsov, Vladislav V."]
[Black "Petukhov, Dmitriy"]
[Result "0-1"]
[ECO "B38"]
[WhiteElo "1296"]
[BlackElo "1769"]
[Annotator "NA"]
[PlyCount "76"]
[EventDate "2021.10.15"]
[EventType "swiss"]
[EventCountry "NET"]
[SourceTitle "playchess.com"]
[Source "ChessBase"]
[SourceQuality "1"]
[TimeControl "5400+30"]

1. e4 {[%emt 0:00:30]} c5 {[%emt 0:00:45]} 2. Nf3 {[%emt 0:00:03]} g6 {[%emt 0:00:08]} 3. d4 {[%emt 0:00:04]} cxd4 {[%emt 0:00:05]} 4. Nxd4 {[%emt 0:00:03]} Bg7 {[%emt 0:00:04]} 5. c4 {[%emt 0:00:06]} Nc6 {[%emt 0:00:07]} 6. Be3 {[%emt 0:00:10]} Nf6 {[%emt 0:00:13]} 7. Nc3 {[%emt 0:00:06]} d6 {[%emt 0:00:33]} 8. Be2 {[%emt 0:00:14]} Be6 {[%emt 0:00:16]} 9. O-O {[%emt 0:00:39]} O-O {[%emt 0:00:08]} 10. Nb3 {[%emt 0:01:08]} a6 {[%emt 0:01:19]} 11. f3 {[%emt 0:00:34]} Rc8 {[%emt 0:01:19]} 12. Nd5 {[%emt 0:01:01]} Bxd5 {[%emt 0:00:14]} 13. cxd5 {[%emt 0:00:35]} Nb8 {[%emt 0:00:21]} 14. Qd2 {[%emt 0:00:32]} Nbd7 {[%emt 0:01:05]} 15. Rac1 {[%emt 0:00:28]} Ne5 {[%emt 0:00:41]} 16. Rxc8 {[%emt 0:01:05]} Qxc8 {[%emt 0:00:05]} 17. Rc1 {[%emt 0:00:05]} Qd7 {[%emt 0:04:58]} 18. f4 {[%emt 0:16:33]} Neg4 {[%emt 0:00:30]} 19. Bxg4 {[%emt 0:01:17]} Nxg4 {[%emt 0:00:49]} 20. Bd4 {[%emt 0:00:35]} Nf6 {[%emt 0:00:41]} 21. Qe2 {[%emt 0:00:44]} Qa4 {[%emt 0:04:35]} 22. Qd3 {[%emt 0:01:25]} b5 {[%emt 0:02:30]} 23. Rc7 {[%emt 0:04:01]} Re8 {[%emt 0:01:19]} 24. h3 {[%emt 0:03:23]} Qxa2 {[%emt 0:02:22]} 25. Rc1 {[%emt 0:08:18]} Qa4 {[%emt 0:00:47]} 26. Qf3 {[%emt 0:06:37]} Nxe4 {[%emt 0:09:46]} 27. Qxe4 {[%emt 0:12:16]} Qxb3 {[%emt 0:00:12]} 28. Bxg7 {[%emt 0:00:04]} Kxg7 {[%emt 0:00:06]} 29. Qd4+ {[%emt 0:00:02]} Kg8 {[%emt 0:00:25]} 30. f5 {[%emt 0:00:26]} Qg3 {[%emt 0:01:05]} 31. f6 {[%emt 0:01:03]} exf6 {[%emt 0:00:22]} 32. Qxf6 {[%emt 0:00:56]} Qe3+ {[%emt 0:00:18]} 33. Qf2 {[%emt 0:00:49]} Qxc1+ {[%emt 0:00:06]} 34. Kh2 {[%emt 0:00:04]} Qe3 {[%emt 0:00:09]} 35. Qh4 {[%emt 0:00:22]} Qe5+ {[%emt 0:00:08]} 36. Kh1 {[%emt 0:00:27]} Qe1+ {[%emt 0:00:08]} 37. Qxe1 {[%emt 0:00:03]} Rxe1+ {[%emt 0:00:03]} 38. Kh2 {[%emt 0:00:02]} Rb1 {[%emt 0:00:04]} 0-1

[Event "EYCC Open U10 2021"]
[Site "Tornelo"]
[Date "2021.10.15"]
[Round "1.6"]
[White "Ivanov, Andrey A."]
[Black "Dmitrenko, Ignat"]
[Result "1-0"]
[ECO "C58"]
[WhiteElo "2180"]
[BlackElo "1278"]
[Annotator "ChessBase"]
[PlyCount "69"]
[EventDate "2021.10.15"]
[EventType "swiss"]
[EventCountry "NET"]
[SourceTitle "playchess.com"]
[Source "ChessBase"]
[SourceQuality "1"]
[TimeControl "5400+30"]

1. e4 {[%emt 0:00:30]} e5 {[%emt 0:00:40]} 2. Nf3 {[%emt 0:01:03]} Nc6 {[%emt 0:00:11]} 3. Bc4 {[%emt 0:00:24]} Nf6 {[%emt 0:00:05]} 4. Ng5 {[%emt 0:00:08]} d5 {[%emt 0:00:12]} 5. exd5 {[%emt 0:00:06]} Na5 {[%emt 0:00:06]} 6. d3 {[%emt 0:00:44]} h6 {[%emt 0:01:28]} 7. Nf3 {[%emt 0:00:09]} e4 {[%emt 0:01:18]} 8. Qe2 {[%emt 0:06:55]} Nxc4 {[%emt 0:05:35]} 9. dxc4 {[%emt 0:00:11]} Bc5 {[%emt 0:03:57]} 10. h3 {[%emt 0:11:51]} O-O {[%emt 0:01:51]} 11. Nfd2 {[%emt 0:02:53]} e3 {[%emt 0:01:11]} 12. fxe3 {[%emt 0:14:06]} Bxe3 {[%emt 0:00:51]} 13. Nc3 {[%emt 0:11:36]} Re8 {[%emt 0:02:12]} 14. Kd1 {[%emt 0:00:53]} Bxd2 {[%emt 0:03:07]} 15. Qxd2 {[%emt 0:00:34]} Qd6 {[%emt 0:12:31]} 16. Qf4 {[%emt 0:04:01]} Qe7 {[%emt 0:03:42]} 17. Bd2 {[%emt 0:02:04]} Nh5 {[%emt 0:03:07]} 18. Qf3 {[%emt 0:01:30]} Qh4 {[%emt 0:01:26]} 19. Rf1 {[%emt 0:05:18]} Nf6 {[%emt 0:01:04]} 20. Qf4 {[%emt 0:00:53]} Qh5+ {[%emt 0:00:50]} 21. Kc1 {[%emt 0:00:41]} Re7 {[%emt 0:03:32]} 22. b3 {[%emt 0:02:54]} Qg6 {[%emt 0:02:55]} 23. Kb2 {[%emt 0:02:38]} b6 {[%emt 0:08:20]} 24. g4 {[%emt 0:01:26]} Ne8 {[%emt 0:02:37]} 25. Rae1 {[%emt 0:00:39]} Rxe1 {[%emt 0:02:29]} 26. Rxe1 {[%emt 0:00:19]} Ba6 {[%emt 0:00:55]} 27. h4 {[%emt 0:01:13]} Nd6 {[%emt 0:04:25]} 28. h5 {[%emt 0:00:43]} Qh7 {[%emt 0:00:27]} 29. Ne4 {[%emt 0:01:34]} Nxe4 {[%emt 0:02:26]} 30. Rxe4 {[%emt 0:00:22]} Kf8 {[%emt 0:01:06]} 31. Bb4+ {[%emt 0:00:29]} Kg8 {[%emt 0:00:36]} 32. Re7 {[%emt 0:00:34]} g6 {[%emt 0:00:10]} 33. hxg6 {[%emt 0:00:13]} Qxg6 {[%emt 0:00:05]} 34. Bc3 {[%emt 0:00:35]} Bc8 {[%emt 0:01:15]} 35. Re8+ {[%emt 0:00:12]} 1-0

[Event "EYCC Open U10 2021"]
[Site "Tornelo"]
[Date "2021.10.15"]
[Round "1.7"]
[White "Apostolovski, Filip"]
[Black "Ochedzan, Filip"]
[Result "0-1"]
[ECO "D00"]
[WhiteElo "1277"]
[BlackElo "1696"]
[Annotator "NA"]
[PlyCount "52"]
[EventDate "2021.10.15"]
[EventType "swiss"]
[EventCountry "NET"]
[SourceTitle "playchess.com"]
[Source "ChessBase"]
[SourceQuality "1"]
[TimeControl "5400+30"]

1. d4 {[%emt 0:00:30]} d5 {[%emt 0:00:38]} 2. Bf4 {[%emt 0:00:08]} c5 {[%emt 0:00:37]} 3. e3 {[%emt 0:01:27]} Nf6 {[%emt 0:00:42]} 4. c4 {[%emt 0:00:46]} e6 {[%emt 0:03:59]} 5. Nc3 {[%emt 0:00:45]} a6 {[%emt 0:01:12]} 6. Nf3 {[%emt 0:19:54]} Nc6 {[%emt 0:05:03]} 7. a3 {[%emt 0:01:16]} dxc4 {[%emt 0:02:17]} 8. Bxc4 {[%emt 0:00:46]} b5 {[%emt 0:00:46]} 9. Bd3 {[%emt 0:01:16]} cxd4 {[%emt 0:01:42]} 10. exd4 {[%emt 0:02:33]} Bb7 {[%emt 0:01:32]} 11. O-O {[%emt 0:01:35]} Be7 {[%emt 0:00:30]} 12. Qd2 {[%emt 0:04:01]} Na5 {[%emt 0:02:49]} 13. Qd1 {[%emt 0:01:20]} O-O {[%emt 0:03:05]} 14. Be3 {[%emt 0:03:01]} Rc8 {[%emt 0:16:13]} 15. Rc1 {[%emt 0:06:22]} Kh8 {[%emt 0:01:58]} 16. b4 {[%emt 0:02:47]} Bxf3 {[%emt 0:03:19]} 17. gxf3 {[%emt 0:03:03]} Nc4 {[%emt 0:02:01]} 18. Bxc4 {[%emt 0:01:58]} Rxc4 {[%emt 0:00:10]} 19. Kh1 {[%emt 0:00:42]} Nd5 {[%emt 0:02:00]} 20. Qd2 {[%emt 0:06:11]} Bf6 {[%emt 0:02:21]} 21. Rg1 {[%emt 0:04:33]} Nxc3 {[%emt 0:09:53]} 22. Rxc3 {[%emt 0:03:04]} Qd5 {[%emt 0:00:37]} 23. Rxc4 {[%emt 0:06:37]} Qxf3+ {[%emt 0:01:27]} 24. Rg2 {[%emt 0:00:20]} bxc4 {[%emt 0:00:06]} 25. Bh6 {[%emt 0:03:37]} gxh6 {[%emt 0:02:12]} 26. Qxh6 {[%emt 0:00:06]} Rg8 {[%emt 0:00:32]} 0-1

[Event "EYCC Open U10 2021"]
[Site "Tornelo"]
[Date "2021.10.15"]
[Round "1.8"]
[White "Diachek, Andriy"]
[Black "Chankseliani, Davit"]
[Result "1-0"]
[ECO "B22"]
[WhiteElo "1689"]
[BlackElo "1276"]
[Annotator "NA"]
[PlyCount "76"]
[EventDate "2021.10.15"]
[EventType "swiss"]
[EventCountry "NET"]
[SourceTitle "playchess.com"]
[Source "ChessBase"]
[SourceQuality "1"]
[TimeControl "5400+30"]

1. e4 {[%emt 0:00:30]} c5 {[%emt 0:00:39]} 2. Nf3 {[%emt 0:00:05]} Nc6 {[%emt 0:00:08]} 3. c3 {[%emt 0:00:07]} e6 {[%emt 0:00:30]} 4. d4 {[%emt 0:00:07]} cxd4 {[%emt 0:00:12]} 5. cxd4 {[%emt 0:00:03]} d6 {[%emt 0:00:12]} 6. Nc3 {[%emt 0:00:19]} Nf6 {[%emt 0:00:48]} 7. Bd3 {[%emt 0:00:32]} Be7 {[%emt 0:00:59]} 8. O-O {[%emt 0:00:09]} Bd7 {[%emt 0:01:01]} 9. Bf4 {[%emt 0:00:51]} a6 {[%emt 0:00:44]} 10. h3 {[%emt 0:00:39]} Nxd4 {[%emt 0:02:11]} 11. Nxd4 {[%emt 0:00:14]} e5 {[%emt 0:00:32]} 12. Nde2 {[%emt 0:00:08]} exf4 {[%emt 0:00:21]} 13. Nxf4 {[%emt 0:00:10]} O-O {[%emt 0:00:53]} 14. Nfd5 {[%emt 0:01:50]} Bc6 {[%emt 0:01:26]} 15. Qf3 {[%emt 0:02:28]} Bxd5 {[%emt 0:13:36]} 16. exd5 {[%emt 0:00:29]} Nd7 {[%emt 0:01:19]} 17. Qg3 {[%emt 0:04:19]} Ne5 {[%emt 0:01:45]} 18. Bc2 {[%emt 0:02:19]} Bh4 {[%emt 0:03:27]} 19. Qh2 {[%emt 0:04:48]} Rc8 {[%emt 0:03:32]} 20. Rac1 {[%emt 0:14:08]} Bf6 {[%emt 0:18:00]} 21. Ne4 {[%emt 0:04:03]} g6 {[%emt 0:02:49]} 22. b3 {[%emt 0:07:06]} Bg7 {[%emt 0:01:24]} 23. h4 {[%emt 0:17:57]} h6 {[%emt 0:12:01]} 24. h5 {[%emt 0:02:52]} f5 {[%emt 0:00:14]} 25. Ng3 {[%emt 0:02:54]} f4 {[%emt 0:01:41]} 26. Ne4 {[%emt 0:12:49]} f3 {[%emt 0:01:20]} 27. g3 {[%emt 0:03:13]} g5 {[%emt 0:01:10]} 28. Qh3 {[%emt 0:02:16]} g4 {[%emt 0:01:41]} 29. Qh4 {[%emt 0:01:24]} Bf6 {[%emt 0:01:17]} 30. Nxf6+ {[%emt 0:00:47]} Qxf6 {[%emt 0:02:22]} 31. Qxf6 {[%emt 0:00:15]} Rxf6 {[%emt 0:00:02]} 32. Bh7+ {[%emt 0:00:20]} Kxh7 {[%emt 0:00:07]} 33. Rxc8 {[%emt 0:00:39]} Nf7 {[%emt 0:04:05]} 34. Rc7 {[%emt 0:02:04]} b5 {[%emt 0:00:17]} 35. Re1 {[%emt 0:00:18]} Kg7 {[%emt 0:00:37]} 36. Re6 {[%emt 0:01:10]} Rf5 {[%emt 0:00:20]} 37. Rxd6 {[%emt 0:01:14]} Re5 {[%emt 0:00:14]} 38. Rg6+ {[%emt 0:01:16]} Kf8 {[%emt 0:00:48]} 1-0

[Event "EYCC Open U10 2021"]
[Site "Tornelo"]
[Date "2021.10.15"]
[Round "1.9"]
[White "Omarsson, Josef"]
[Black "Dumbelovic, Novak"]
[Result "0-1"]
[ECO "A48"]
[WhiteElo "1274"]
[BlackElo "1688"]
[Annotator "NA"]
[PlyCount "72"]
[EventDate "2021.10.15"]
[EventType "swiss"]
[EventCountry "NET"]
[SourceTitle "playchess.com"]
[Source "ChessBase"]
[SourceQuality "1"]
[TimeControl "5400+30"]

1. d4 {[%emt 0:00:30]} Nf6 {[%emt 0:00:35]} 2. Bf4 {[%emt 0:00:12]} g6 {[%emt 0:00:05]} 3. e3 {[%emt 0:00:41]} Bg7 {[%emt 0:00:04]} 4. Nf3 {[%emt 0:00:59]} O-O {[%emt 0:00:12]} 5. Be2 {[%emt 0:01:13]} d6 {[%emt 0:00:21]} 6. O-O {[%emt 0:02:33]} Nh5 {[%emt 0:00:10]} 7. Bg3 {[%emt 0:01:31]} Nxg3 {[%emt 0:00:14]} 8. hxg3 {[%emt 0:00:08]} c5 {[%emt 0:01:44]} 9. c4 {[%emt 0:01:30]} Nc6 {[%emt 0:01:01]} 10. Nc3 {[%emt 0:01:52]} cxd4 {[%emt 0:02:43]} 11. exd4 {[%emt 0:00:09]} Bf5 {[%emt 0:01:01]} 12. Rc1 {[%emt 0:02:17]} Qb6 {[%emt 0:02:37]} 13. Na4 {[%emt 0:03:24]} Qa5 {[%emt 0:00:28]} 14. a3 {[%emt 0:01:56]} Nxd4 {[%emt 0:00:40]} 15. Nxd4 {[%emt 0:00:11]} Bxd4 {[%emt 0:00:05]} 16. b4 {[%emt 0:00:06]} Qe5 {[%emt 0:00:07]} 17. Re1 {[%emt 0:01:54]} Qf6 {[%emt 0:00:31]} 18. Bf3 {[%emt 0:00:47]} Rab8 {[%emt 0:01:24]} 19. Re2 {[%emt 0:01:10]} Rfc8 {[%emt 0:00:21]} 20. Bd5 {[%emt 0:06:24]} e5 {[%emt 0:01:07]} 21. Qd2 {[%emt 0:03:12]} Bg4 {[%emt 0:00:52]} 22. Re4 {[%emt 0:01:15]} Bf5 {[%emt 0:00:49]} 23. Rh4 {[%emt 0:00:41]} Be6 {[%emt 0:01:59]} 24. Bxe6 {[%emt 0:02:35]} fxe6 {[%emt 0:00:07]} 25. Re1 {[%emt 0:00:49]} Rxc4 {[%emt 0:02:07]} 26. Nb2 {[%emt 0:01:32]} Rc7 {[%emt 0:01:03]} 27. Nd3 {[%emt 0:00:46]} Rbc8 {[%emt 0:00:09]} 28. Qh6 {[%emt 0:02:05]} Qg7 {[%emt 0:01:35]} 29. Qg5 {[%emt 0:02:10]} Rc2 {[%emt 0:00:13]} 30. Qg4 {[%emt 0:01:16]} Qf7 {[%emt 0:00:27]} 31. Rf1 {[%emt 0:01:22]} R8c3 {[%emt 0:00:19]} 32. Qd1 {[%emt 0:00:59]} Qf5 {[%emt 0:00:26]} 33. Ne1 {[%emt 0:01:47]} Rxf2 {[%emt 0:00:18]} 34. Rxf2 {[%emt 0:01:23]} Qxf2+ {[%emt 0:00:15]} 35. Kh2 {[%emt 0:00:30]} Qxg3+ {[%emt 0:00:08]} 36. Kh1 {[%emt 0:00:05]} Qxh4# {[%emt 0:00:04]} 0-1